[Event "FIDE WSTC Open 50 2025"]
[Site "Prague"]
[Date "2025.02.18"]
[Round "2.12"]
[White "Frostick, Clive A"]
[Black "Arnason, Jon L"]
[Result "0-1"]
[Annotator "TA"]
[ECO "C47"]
[WhiteElo "2105"]
[BlackElo "2405"]
[PlyCount "70"]
[EventDate "2025.02.17"]
[EventType "team-tourn"]
[EventCountry "CZE"]
[SourceTitle "playchess.com"]
[Source "ChessBase"]
[SourceQuality "1"]
[TimeControl "40/5400+30:1800+30"]

{[%evp 12,70,39,-8,-10,-14,-10,-2,-10,-19,-2,-4,0,-6,0,0,22,22,15,-31,-20,-33,58,41,102,27,29,32,33,32,25,-61,-17,-22,-23,-24,-15,-189,-154,-212,-203,-206,-200,-226,-120,-113,-118,-491,-467,-502,-507,-509,-483,-597,-413,-549,-543,-491,-451,-745,-740]} 1. e4 {[%emt 0:00:13]} e5 {[%emt 0:00:15]} 2. Nf3 {[%emt 0:00:47]} Nc6 {[%emt 0:00:07]} 3. Nc3 {[%emt 0:00:23]} Nf6 {[%emt 0:00:26]} 4. d4 {[%emt 0:00:57]} exd4 {[%emt 0:00:09]} 5. Nxd4 {[%emt 0:00:09]} Bc5 {[%emt 0:01:59]} 6. Be3 {[%emt 0:08:55]} Bb6 {[%emt 0:00:50]} 7. Be2 {[%emt 0:10:49] 7.Qd2 is the modern continuation.} (7. Qd2 $14) 7... O-O $11 {[%emt 0:06:02] C47: Scotch Four Knights and Four Knights with 4 g3.} 8. O-O {[%emt 0:07:07]} Re8 {[%emt 0:01:33]} 9. Nxc6 {[%emt 0:05:57]} bxc6 {[%emt 0:00:31] The position is equal.} 10. Bg5 {[%emt 0:01:45]} h6 {[%emt 0:08:53]} 11. Bh4 {[%emt 0:02:37]} Qe7 {[%emt 0:13:52]} 12. Bd3 {[%emt 0:09:31]} d6 {[%emt 0:04:58]} 13. Kh1 {[%emt 0:09:05]} Bd4 {[%emt 0:18:48]} 14. f4 {[%emt 0:15:37]} Qe6 $146 {[%emt 0:02:02]} (14... Bxc3 15. bxc3 Bd7 16. Qf3 Qe6 17. Rae1 Qg4 18. Qf2 Qe6 19. e5 dxe5 20. h3 e4 21. Bxf6 Qxf6 22. Rxe4 Rxe4 23. Bxe4 Qxc3 {0-1 Castrillo Mansego,P (1990)-Del Amo Carbo,J (2153) Barcelona Electrica de Baleares 2018 (2)}) 15. Ne2 {[%emt 0:04:12]} (15. e5 $11 {feels stronger.} dxe5 16. f5) 15... Bxb2 $15 {[%emt 0:09:38]} 16. Rb1 {[%emt 0:00:50]} Rb8 {[%emt 0:04:18]} ({Better is} 16... Qxa2 $15 17. c3 (17. e5 dxe5 18. Bxf6 gxf6 $11) 17... Nd7 (17... Nxe4 18. Qc2 $14)) 17. Nd4 $14 {[%emt 0:02:48]} Qg4 {[%emt 0:02:03]} (17... Qxa2 $14 18. Bxf6 (18. Nxc6 Rb6 $17) 18... Bd7) 18. Bxf6 {[%emt 0:03:17]} (18. Nxc6 Qxh4 19. g3 Qh3 20. Nxb8 Bd4 $19 (20... Bg4 $2 21. Qd2 $19)) (18. Qxg4 $1 $16 Nxg4 19. Nxc6) 18... Qxd1 $11 {[%emt 0:00:14]} 19. Rfxd1 {[%emt 0:00:56]} gxf6 {[%emt 0:02:29]} 20. Nxc6 {[%emt 0:03:52]} Rb6 {[%emt 0:00:23]} 21. Na5 {[%emt 0:03:07]} (21. Nxa7 $11 Bd7 22. c4 (22. Nb5 Bxb5 23. Rxb2 Bxd3 $17)) 21... Bc3 {[%emt 0:08:03]} 22. Nc4 {[%emt 0:02:11]} Rxb1 {[%emt 0:00:15]} 23. Rxb1 {[%emt 0:00:05]} Be6 {[%emt 0:00:50]} 24. Ne3 $2 {[%emt 0:04:56]} (24. Rb7 $2 Bxc4 25. Rxc7 Bxd3 26. cxd3 Bd4 $19) (24. g3 $1 $11 {and White stays safe.}) 24... Bxa2 $19 {[%emt 0:02:24] This pair of bishops is nice.} 25. Rb7 {[%emt 0:00:10] [#]} (25. Rb5 $17 {was worth a try.}) 25... Bd4 $1 {[%emt 0:00:50]} 26. Nf5 {[%emt 0:01:54]} Bb6 {[%emt 0:00:13][%cal Oa2d5]} 27. g4 {[%emt 0:00:43]} d5 {[%emt 0:06:40]} (27... Kf8 $19 {aiming for ...d5.} 28. Bb5 Rd8 29. Nxh6 d5) 28. Bb5 $17 {[%emt 0:00:41] [#]} (28. Nxh6+ $2 Kh7 (28... Kf8 $2 29. Bb5 $19) 29. Bb5 Rf8 $19 (29... Rxe4 30. Nxf7 Kg6 31. Nd8 $17)) 28... Rd8 {[%emt 0:00:23]} (28... Rxe4 $6 29. Rb8+ Kh7 30. Ng3 $11) 29. Bd3 {[%emt 0:00:43][%mdl 8192]} (29. Nxh6+ $2 {loses.} Kf8 30. Kg2 dxe4 $19) (29. Ne7+ $17 {was the crucial defense.} Kh8 30. e5) 29... dxe4 $19 {[%emt 0:00:56]} 30. Bxe4 {[%emt 0:00:03]} Kf8 {[%emt 0:01:13]} 31. Kg2 {[%emt 0:00:36]} Bc4 {[%emt 0:00:14]} 32. Nxh6 {[%emt 0:00:56]} Ba6 {[%emt 0:00:14]} 33. Kf3 {[%emt 0:00:30]} Bxb7 {[%emt 0:00:44] Black is clearly winning.} 34. Bxb7 {[%emt 0:00:03]} Rd2 {[%emt 0:01:34][%cal Oa7a5]} 35. Be4 {[%emt 0:00:10]} (35. Ba6 $142) 35... a5 {[%emt 0:00:39] Weighted Error Value: White=0.54/Black=0.22 (precise)   Loses game:     	White=2     	---        Mistake:       	White=5     	Black=3      Inaccurate:     	White=1     	Black=2      OK:         	White=7     	Black=11     Best:        	White=3     	Black=4      Strong:       	---       	Black=1} 0-1

[Event "FIDE WSTC Open 50 2025"]
[Site "Prague"]
[Date "2025.02.18"]
[Round "2.13"]
[White "Gronn, Atle"]
[Black "Godena, Michele"]
[Result "1/2-1/2"]
[Annotator "TA"]
[ECO "D02"]
[WhiteElo "2366"]
[BlackElo "2439"]
[PlyCount "49"]
[EventDate "2025.02.17"]
[EventType "team-tourn"]
[EventCountry "CZE"]
[SourceTitle "playchess.com"]
[Source "ChessBase"]
[SourceQuality "1"]
[TimeControl "40/5400+30:1800+30"]

{[%evp 10,49,26,14,14,3,7,0,22,7,33,17,24,14,22,22,29,39,43,32,31,31,31,28,29,23,29,13,34,21,25,0,0,0,0,0,0,0,0,0,0,-56]} 1. d4 {[%emt 0:00:05]} d5 {[%emt 0:00:08]} 2. Nf3 {[%emt 0:00:06]} Bf5 {[%emt 0:02:46]} 3. c4 {[%emt 0:01:44]} e6 {[%emt 0:00:11]} 4. Nc3 {[%emt 0:02:13]} Nf6 {[%emt 0:17:13]} 5. Bg5 {[%emt 0:04:58]} c6 {[%emt 0:02:15]} 6. Qb3 {[%emt 0:06:59]} Qb6 {[%emt 0:04:05] D06: Queen's Gambit: Symmetrical and Baltic Defences.} 7. Bxf6 {[%emt 0:10:52]} gxf6 {[%emt 0:00:45]} 8. e3 {[%emt 0:02:16]} Rg8 {[%emt 0:27:48]} 9. cxd5 {[%emt 0:15:16]} exd5 {[%emt 0:06:42]} 10. Qxb6 {[%emt 0:03:14]} axb6 {[%emt 0:00:08]} 11. Nh4 {[%emt 0:00:53][%cal Bf3h4,Bh4g2,Bg2f4][%mdl 32]} Bg6 {[%emt 0:22:45]} 12. Kd2 $146 {[%emt 0:02:16]} ({Predecessor:} 12. Be2 b5 13. O-O b4 14. Nxg6 hxg6 15. Nb1 Nd7 16. Nd2 f5 17. Nf3 Bd6 18. Ne1 {½-½ Mai,I (2110)-Petri,B (2052) BL2 Ost 1213 (Women) 2012 (3.3)}) 12... Be7 {[%emt 0:03:45]} 13. g3 {[%emt 0:02:07]} f5 {[%emt 0:01:58]} 14. Ng2 {[%emt 0:01:08]} Nd7 {[%emt 0:00:07]} 15. Bd3 {[%emt 0:02:12]} Nf6 {[%emt 0:00:17]} 16. f3 {[%emt 0:03:29]} Kd7 {[%emt 0:02:26]} 17. Nf4 {[%emt 0:03:38]} Ne8 {[%emt 0:00:34]} 18. h4 {[%emt 0:06:41] [#] And now h5 would win.} h5 {[%emt 0:00:04]} 19. a4 {[%emt 0:02:04]} Bb4 {[%emt 0:02:50]} 20. Kc2 {[%emt 0:01:43][%cal Oc3d5]} Nf6 {[%emt 0:00:04] The position is equal.} 21. Rhg1 {[%emt 0:07:44]} Rae8 {[%emt 0:00:53]} 22. Rae1 {[%emt 0:03:30]} Re7 {[%emt 0:00:16]} 23. Kb3 Bd6 {[%emt 0:02:09]} 24. Re2 {[%emt 0:02:09]} Bh7 {[%emt 0:01:03]} 25. Rgg2 {[%emt 0:05:10] Weighted Error Value: White=0.06 (flawless) /Black=0.04 (flawless)   Mistake:       	White=1     	---        Inaccurate:     	---       	Black=1      OK:         	White=7     	Black=8} ({White should play} 25. Nd1 $11) 1/2-1/2

[Event "FIDE WSTC Open 50 2025"]
[Site "Prague"]
[Date "2025.02.18"]
[Round "2.14"]
[White "Bellini, Fabio"]
[Black "Dahl, Fredrik A"]
[Result "1-0"]
[Annotator "TA"]
[ECO "C42"]
[WhiteElo "2408"]
[BlackElo "2198"]
[PlyCount "97"]
[EventDate "2025.02.17"]
[EventType "team-tourn"]
[EventCountry "CZE"]
[SourceTitle "playchess.com"]
[Source "ChessBase"]
[SourceQuality "1"]
[TimeControl "40/5400+30:1800+30"]

{[%evp 12,97,18,12,22,8,16,18,15,8,0,0,0,4,14,0,0,6,11,12,24,9,6,0,0,0,0,0,0,-46,-63,-103,-90,-127,-131,-160,-162,-152,-72,-71,-83,-81,0,0,0,0,0,0,0,0,0,0,0,0,54,41,131,0,0,-12,0,0,22,0,0,0,0,0,0,0,0,0,396,397,403,416,401,422,416,420,403,404,438,432,562,610,630,614]} 1. e4 {[%emt 0:00:04]} e5 {[%emt 0:00:05]} 2. Nf3 {[%emt 0:00:13]} Nf6 {[%emt 0:00:05]} 3. Nxe5 {[%emt 0:00:52]} d6 {[%emt 0:00:10]} 4. Nf3 {[%emt 0:00:23]} Nxe4 {[%emt 0:00:09]} 5. c4 {[%emt 0:01:15]} Nc6 {[%emt 0:01:51]} 6. Nc3 {[%emt 0:04:11]} Nxc3 {[%emt 0:01:18]} 7. dxc3 {[%emt 0:00:57]} Bf5 {[%emt 0:05:43] 7...g6 gains popularity. C42: Petroff Defence: 3 Nxe5 and unusual White 3rd moves.} 8. Bd3 {[%emt 0:11:58]} Qd7 {[%emt 0:04:18]} 9. Bxf5 {[%emt 0:04:30]} Qxf5 {[%emt 0:00:10] The position is equal.} 10. O-O {[%emt 0:00:32]} Be7 {[%emt 0:04:17]} 11. Re1 {[%emt 0:01:55]} O-O {[%emt 0:03:50]} 12. Qd5 {[%emt 0:09:02]} Qc2 {[%emt 0:20:10]} 13. Bf4 {[%emt 0:12:53]} Bf6 {[%emt 0:02:33]} 14. Qb5 {[%emt 0:03:17][%cal Oa1c1]} Rab8 {[%emt 0:03:31]} 15. Rac1 {[%emt 0:02:44]} Qg6 {[%emt 0:01:13]} 16. h3 {[%emt 0:07:48]} h6 {[%emt 0:04:54]} 17. Rcd1 $146 {[%emt 0:04:18]} (17. g4 Nd8 18. Bg3 Ne6 19. Qd5 Nc5 20. Rcd1 Rfe8 21. Kg2 Rxe1 22. Rxe1 Qd3 23. h4 Qxd5 24. cxd5 {½-½ Zhang,Z (2596)-Mamedyarov,S (2660) Olympiad-36 Mallorca 2004 (12)}) 17... a6 {[%emt 0:04:25]} 18. Qd5 {[%emt 0:01:04]} Qc2 {[%emt 0:04:10]} 19. Rd2 {[%emt 0:03:39]} Qa4 {[%emt 0:00:51]} 20. Qf5 {[%emt 0:08:36]} (20. Bg3 $11 {might be stronger.}) 20... Ne7 $15 {[%emt 0:02:32]} 21. Qg4 {[%emt 0:03:30]} Qxc4 {[%emt 0:04:20]} 22. b3 {[%emt 0:06:08] [#]} h5 $1 {[%emt 0:02:11]} 23. Qg3 {[%emt 0:05:02]} (23. bxc4 hxg4) 23... Qxc3 {[%emt 0:01:29]} 24. Bg5 {[%emt 0:00:14] [#]} Nf5 {[%emt 0:12:44]} (24... Rbe8 $142 $1 {Hoping for ...Nf5.} 25. Red1 Bxg5 26. Qxg5 g6) 25. Qf4 $17 {[%emt 0:00:56]} Bxg5 26. Nxg5 {[%cal Of4f5,Bf3g5,Bg5e4,Be4g3,Bg3h5,Bh5f4,Bf4d5][%mdl 32]} Qf6 {[%emt 0:04:12]} (26... Qa5 $17 27. Rde2 Nd4) 27. Rd5 $36 {[%emt 0:03:45][%mdl 2048] Black is under pressure.} Nh6 {[%emt 0:04:37]} 28. Qxf6 {[%emt 0:00:22]} gxf6 {[%emt 0:00:06]} 29. Ne4 {[%emt 0:00:04][%csl LRf6,LRh5][%cal Oe1e3]} Kg7 {[%emt 0:01:06]} 30. Ng3 {[%emt 0:00:56]} Rfe8 {[%emt 0:03:34]} 31. Nxh5+ {[%emt 0:00:06]} Kg6 $1 {[%emt 0:00:10]} 32. Nf4+ {[%emt 0:00:08]} Kh7 {[%emt 0:00:10]} ({Better is} 32... Kg7 $1 $11 33. Rc1 Rbc8) 33. Rc1 $1 $14 {[%emt 0:00:41][%mdl 1024] White has compensation.} Re7 {[%emt 0:01:00]} (33... Rbc8 $14) 34. Rc4 {[%emt 0:01:52] White is more active.} (34. Rdd1 $16) 34... Rd8 $11 {[%emt 0:00:40]} 35. Rh5 {[%emt 0:00:54]} f5 {[%emt 0:02:38]} 36. Nd5 {[%emt 0:00:24][%csl LRc7,LRe7]} Re1+ {[%emt 0:00:13]} 37. Kh2 {[%emt 0:00:01][%cal Oc4h4]} c6 {[%emt 0:00:22]} 38. Ne3 {[%emt 0:00:47][%cal Oc4h4]} Kg6 {[%emt 0:01:39]} 39. Rch4 {[%emt 0:01:16]} Rh8 {[%emt 0:01:33]} 40. Kg3 {[%emt 0:01:46]} f6 $1 {[%emt 0:00:55]} 41. Kf3 {[%emt 0:01:27] Repels Re2} Kg7 $2 {[%emt 0:05:23][%mdl 8192]} (41... d5 $11 {and Black stays safe.}) 42. Nxf5+ $18 {[%emt 0:01:48]} (42. Rxh6 Rxe3+ 43. fxe3 Rxh6 $14) 42... Nxf5 {[%emt 0:00:16]} 43. Rg4+ {[%emt 0:00:05]} ({Weaker is} 43. Rxh8 Nxh4+ 44. Rxh4 d5 $18) 43... Kf7 {[%emt 0:00:28]} 44. Rxh8 {[%emt 0:00:06]} d5 {[%emt 0:00:20]} 45. Rh7+ {[%emt 0:02:30]} Ke6 {[%emt 0:00:07]} 46. Rxb7 {[%emt 0:00:23]} Ke5 {[%emt 0:01:04]} 47. Rg8 {[%emt 0:04:18] And now Re8+ would win. White is clearly winning.} Nh4+ {[%emt 0:00:23]} 48. Kg4 {[%emt 0:01:25]} Re4+ {[%emt 0:00:33]} 49. Kh5 {[%emt 0:00:33] White used his chance.   Weighted Error Value: White=0.11 (very precise) /Black=0.30  Loses game:     	---       	Black=1      Mistake:       	White=2     	Black=4      Inaccurate:     	White=2     	Black=1      OK:         	White=23    	Black=23     Best:        	White=2     	Black=3      Strong:       	White=1     	Black=2} 1-0

[Event "FIDE WSTC Open 50 2025"]
[Site "Prague"]
[Date "2025.02.18"]
[Round "2.15"]
[White "Kirkebo, Carl Peter"]
[Black "Bellia, Fabrizio"]
[Result "0-1"]
[Annotator "TA"]
[ECO "A13"]
[WhiteElo "2148"]
[BlackElo "2393"]
[PlyCount "62"]
[EventDate "2025.02.17"]
[EventType "team-tourn"]
[EventCountry "CZE"]
[SourceTitle "playchess.com"]
[Source "ChessBase"]
[SourceQuality "1"]
[TimeControl "40/5400+30:1800+30"]

{[%evp 14,62,0,9,13,0,25,0,0,-6,6,-2,6,21,23,21,14,26,25,16,46,0,0,-1,-5,-89,-72,-161,-162,-155,-165,-155,-156,-234,-222,-272,-272,-265,-280,-371,-354,-729,-716,-691,-579,-845,-857,-856,-855,-827,-827]} 1. c4 {[%emt 0:00:06]} e6 {[%emt 0:01:04]} 2. Nf3 {[%emt 0:00:31]} d5 {[%emt 0:00:24]} 3. g3 {[%emt 0:00:32]} Nf6 {[%emt 0:03:17]} 4. Bg2 {[%emt 0:00:52]} d4 {[%emt 0:00:29]} 5. O-O {[%emt 0:02:17]} c5 {[%emt 0:00:10]} 6. e3 {[%emt 0:01:00]} Nc6 {[%emt 0:00:11]} 7. exd4 {[%emt 0:01:22]} cxd4 {[%emt 0:00:10]} 8. d3 {[%emt 0:01:07]} Bd6 {[%emt 0:06:13] A13: English Opening: 1...e6.} 9. Na3 {[%emt 0:12:02]} O-O {[%emt 0:07:03]} 10. Nc2 {[%emt 0:02:59]} (10. Re1 $5) 10... e5 {[%emt 0:07:14] The position is equal.} 11. b4 {[%emt 0:06:21]} a6 {[%emt 0:06:50][%cal Oc8f5]} 12. Rb1 {[%emt 0:15:35] has lost popularity (12.a4).} Bd7 {[%emt 0:04:42]} 13. Re1 {[%emt 0:14:28]} Re8 {[%emt 0:02:27]} 14. Bg5 {[%emt 0:00:48]} h6 {[%emt 0:04:55]} 15. Bxf6 {[%emt 0:01:04]} Qxf6 {[%emt 0:00:07]} 16. Nd2 {[%emt 0:00:21]} Bf8 {[%emt 0:07:10]} 17. Ne4 $146 {[%emt 0:07:37]} (17. c5 $14) (17. a4 Qg6 18. Qe2 Bg4 19. Qf1 Kh8 20. b5 axb5 21. axb5 Nd8 22. Nxd4 Ra2 23. N4f3 {1-0 Fanninger,L (2215)-Esplugas Esteve,V (2290) La Pobla de Lillet op 33rd 2024 (6)}) 17... Qg6 $11 {[%emt 0:02:00]} 18. Nc5 {[%emt 0:03:59]} Bf5 {[%emt 0:00:11]} 19. Rb3 (19. Ne4 $1 $11 {remains equal.}) 19... a5 $36 {[%emt 0:01:16][%mdl 2048] Black is really pushing.} 20. a3 {[%emt 0:08:28]} (20. Nxb7 $17 Nxb4 (20... Bxb4 21. Nxb4 Nxb4 22. Nc5 $17) (20... axb4 21. c5 $11) 21. Nxb4 Bxb4 (21... axb4 22. c5 $15) 22. Rf1) 20... a4 $19 {[%emt 0:04:10]} 21. Rb2 {[%emt 0:00:57]} Bxc5 {[%emt 0:00:08]} 22. bxc5 {[%emt 0:00:07]} Bxd3 {[%emt 0:00:07][%csl Od4] Black has a strong passed pawn} 23. Nb4 {[%emt 0:00:38]} (23. Bd5 $17 {was necessary.}) 23... Bxc4 {[%emt 0:00:44]} 24. Nd5 {[%emt 0:01:37]} Bb3 {[%emt 0:01:31]} 25. Rxb3 {[%emt 0:01:54]} axb3 {[%emt 0:00:10]} 26. Nc7 {[%emt 0:02:17]} Qc2 {[%emt 0:01:59][%cal Od4d3]} 27. Qxc2 {[%emt 0:02:23]} (27. Nxe8 Rxe8 28. Qxc2 bxc2 29. Be4) 27... bxc2 {[%emt 0:00:05] Black is clearly winning.} 28. Be4 {[%emt 0:00:30] [#]} Rxa3 $1 {[%emt 0:07:55][%cal Od4d3]} 29. Nxe8 {[%emt 0:00:10]} (29. Bxc2 d3) 29... d3 {[%emt 0:00:02] Threatens to win with ...d2.} 30. Rf1 {[%emt 0:03:05]} Nd4 {[%emt 0:00:08]} 31. Nd6 {[%emt 0:00:58]} Rc3 {[%emt 0:01:30] Weighted Error Value: White=0.59/Black=0.13 (very precise)   Mistake:       	White=5     	---        Inaccurate:     	White=2     	Black=1      OK:         	White=7     	Black=8      Best:        	White=1     	Black=3} 0-1

[Event "FIDE WSTC Open 50 2025"]
[Site "Prague"]
[Date "2025.02.18"]
[Round "2.16"]
[White "D'Amore, Carlo"]
[Black "Berg, Anders Hoyer"]
[Result "1-0"]
[Annotator "TA"]
[ECO "A06"]
[WhiteElo "2362"]
[BlackElo "2073"]
[PlyCount "81"]
[EventDate "2025.02.17"]
[EventType "team-tourn"]
[EventCountry "CZE"]
[SourceTitle "playchess.com"]
[Source "ChessBase"]
[SourceQuality "1"]
[TimeControl "40/5400+30:1800+30"]

{[%evp 21,81,0,0,0,0,0,23,38,31,32,37,37,43,51,37,12,12,8,14,0,0,0,0,0,0,0,0,0,-8,-8,9,10,10,18,18,-8,10,21,87,92,142,141,143,129,205,204,186,184,218,213,245,261,1571,1563,1550,1529,29996,29997,29997,29998,29998,29994]} 1. Nf3 {[%emt 0:00:45]} d5 {[%emt 0:00:16]} 2. g3 {[%emt 0:01:53]} Nf6 {[%emt 0:00:41]} 3. Bg2 {[%emt 0:00:06]} c6 {[%emt 0:00:59]} 4. b3 {[%emt 0:03:32]} Bg4 {[%emt 0:01:48]} 5. Bb2 {[%emt 0:00:20]} Nbd7 {[%emt 0:01:33]} 6. c4 {[%emt 0:06:43]} e6 {[%emt 0:01:46]} 7. O-O {[%emt 0:00:47]} Bd6 {[%emt 0:05:38]} 8. d3 {[%emt 0:01:55]} O-O {[%emt 0:01:19]} 9. Nbd2 {[%emt 0:00:13]} a5 {[%emt 0:10:17]} 10. a3 {[%emt 0:00:21]} Qe7 {[%emt 0:03:24]} 11. h3 {[%emt 0:00:24]} Bh5 {[%emt 0:08:04]} 12. cxd5 {[%emt 0:10:35] A12: English Opening: 1...c6 with b3 by White.} cxd5 {[%emt 0:05:03]} 13. Nd4 {[%emt 0:01:44]} a4 $146 {[%emt 0:24:06]} (13... Rfc8 14. N2f3 Bc5 15. Qd2 Ne8 16. Nc2 Bg6 17. b4 axb4 18. axb4 Bb6 19. Nfd4 Nd6 {1-0 Brunello,S (2553)-Schneider,I (2517) EU-ch blitz Katowice 2017 (16)}) 14. b4 {[%emt 0:04:29] White has an edge.} Rfc8 {[%emt 0:06:22]} 15. Rc1 {[%emt 0:15:08]} Rxc1 {[%emt 0:00:43]} 16. Qxc1 {[%emt 0:00:09]} Qd8 {[%emt 0:01:15]} 17. Qa1 {[%emt 0:03:23]} Qb6 {[%emt 0:07:16]} 18. g4 {[%emt 0:08:17]} Bg6 {[%emt 0:00:16]} 19. N4f3 {[%emt 0:01:31]} h6 {[%emt 0:01:27]} 20. Rc1 {[%emt 0:01:35]} Qd8 {[%emt 0:00:36]} 21. Ne5 {[%emt 0:02:54]} Nxe5 {[%emt 0:01:00]} 22. Bxe5 {[%emt 0:00:04]} Bxe5 {[%emt 0:00:34]} 23. Qxe5 {[%emt 0:00:05]} Rc8 {[%emt 0:00:42] Prevents Qc7} 24. Qa1 {[%emt 0:02:43]} Ne8 {[%emt 0:02:39]} 25. Nf3 {[%emt 0:03:21]} Rxc1+ {[%emt 0:01:39]} 26. Qxc1 {[%emt 0:00:12]} Qc7 {[%emt 0:01:07] Repels Qc2} 27. Qd1 {[%emt 0:02:15]} b5 $1 {[%emt 0:00:29] [#] ...Qc3 would now be deadly.} 28. Nd4 {[%emt 0:00:55]} Nd6 {[%emt 0:00:29]} (28... e5 $5 29. Nxb5 Qc6 $16) 29. Qd2 {[%emt 0:01:21] Dodges Qc3} Kf8 {[%emt 0:05:24]} (29... e5 $11 {remains equal.} 30. Qc2 Qxc2 31. Nxc2 e4) 30. f4 $16 {[%emt 0:01:58]} Ke7 {[%emt 0:06:10]} (30... Kg8 $142) 31. Qe3 {[%emt 0:03:44][%cal Of4f5]} Kf8 {[%emt 0:01:25]} 32. Kf2 {[%emt 0:02:02] White is more active.} Qc3 {[%emt 0:01:07]} (32... h5 $16 33. Bf3 (33. Qxe6 Nf5 $11) 33... Kg8 34. gxh5 Bh7) 33. Qe5 $18 {[%emt 0:01:21] aiming for Nxe6+.} Qc7 {[%emt 0:00:28] [#]} 34. Qxe6 $1 {[%emt 0:10:06][%mdl 512]} Ne4+ {[%emt 0:00:37]} (34... fxe6 $2 35. Nxe6+ Ke7 36. Nxc7 $18) (34... Nc4 35. Ke1) 35. Bxe4 {[%emt 0:02:49]} (35. dxe4 $2 Qxf4+ (35... fxe6 $2 {too greedy.} 36. Nxe6+ Ke7 37. Nxc7 $18) 36. Bf3 Qh2+ (36... fxe6 $2 37. Nxe6+ Kf7 38. Nxf4 $18) 37. Kf1 fxe6 $19) 35... Qxf4+ {[%emt 0:00:27]} 36. Kg2 {[%emt 0:00:22] White wants to mate with Qc8+.} dxe4 $2 {[%emt 0:00:51]} (36... Qxe4+ 37. dxe4 fxe6) 37. Qc8+ {[%emt 0:02:00]} Ke7 {[%emt 0:00:01]} 38. Nc6+ {[%emt 0:00:10]} ({Worse is} 38. Nxb5 exd3 39. Qc5+ Kd8 40. Qd5+ Ke7 41. exd3 Qd2+ 42. Kf3 f6 $11 (42... Qxd3+ 43. Qxd3 Bxd3 44. Nc3 $11)) 38... Kf6 {[%emt 0:00:24]} 39. Qd8+ {[%emt 0:00:19] White mates.} Ke6 {[%emt 0:00:10]} 40. Nd4+ {[%emt 0:00:50]} Ke5 {[%emt 0:00:39]} 41. Qc7+ {[%emt 0:30:15] Weighted Error Value: White=0.02 (flawless) /Black=0.52  Mistake:       	---       	Black=4      Inaccurate:     	White=1     	---        OK:         	White=13    	Black=9      Best:        	White=3     	Black=2      Strong:       	---       	Black=1} 1-0